Workbook

Sheet 20 RUNS PV-1
A1: NOTICE: This document is an example only. It must be revised to reflect your lab’s specific processes and/or specific protocol requirements.
A2: Approved and current. Effective starting 10-Aug-2023. Last reviewed on 10-Aug-2023. RDP 510 (version 1.0). Precision (Chemistry)_Example. Page 1 of 4
D3: Vitros 250 | F3: Serial Number: 123456
D4: Date: 3 August 2023
D5: Within Run Precision--Precinormal
B7: URIC | C7: ALT | D7: ALB | E7: AMYL | F7: AST | G7: BU | H7: BC | I7: TBIL | J7: CA | K7: Cl | L7: CHOL | M7: DHDL | N7: CK | O7: CREA | P7: ECO2 | Q7: ALKP | R7: PHOS | S7: GLU | T7: LAC | U7: LIPA | V7: K | W7: TP | X7: NA | Y7: TRIG | Z7: BUN
B8: 3.8 | C8: 40 | D8: 2.34 | E8: 82 | F8: 29 | G8: 0.73 | H8: 0.51 | I8: 1.2 | J8: 9.04 | K8: 79.9 | L8: 146 | M8: 35.4 | N8: 189 | O8: 0.9 | P8: 22.6 | Q8: 102 | R8: 3.78 | S8: 75 | T8: 1.31 | U8: 134 | V8: 3.2 | W8: 3.99 | X8: 119.8 | Y8: 120.4 | Z8: 21
B9: 3.81 | C9: 43 | D9: 2.33 | E9: 83 | F9: 29 | G9: 0.72 | H9: 0.58 | I9: 1.22 | J9: 8.93 | K9: 79.9 | L9: 144 | M9: 36.1 | N9: 192 | O9: 0.9 | P9: 22 | Q9: 101 | R9: 3.69 | S9: 75 | T9: 1.23 | U9: 132 | V9: 3.11 | W9: 3.99 | X9: 120.1 | Y9: 119.7 | Z9: 20.9
B10: 3.81 | C10: 43 | D10: 2.3 | E10: 84 | F10: 29 | G10: 0.72 | H10: 0.61 | I10: 1.2 | J10: 8.87 | K10: 79.5 | L10: 145 | M10: 35.8 | N10: 182 | O10: 0.9 | P10: 22.2 | Q10: 101 | R10: 3.67 | S10: 74 | T10: 1.22 | U10: 131 | V10: 3.1 | W10: 4.05 | X10: 119.9 | Y10: 120.6 | Z10: 21.1
B11: 3.82 | C11: 46 | D11: 2.32 | E11: 83 | F11: 29 | G11: 0.71 | H11: 0.56 | I11: 1.23 | J11: 9.05 | K11: 79.1 | L11: 146 | M11: 36 | N11: 190 | O11: 0.9 | P11: 22 | Q11: 101 | R11: 3.69 | S11: 74 | T11: 1.22 | U11: 135 | V11: 3.1 | W11: 3.97 | X11: 120.3 | Y11: 120.7 | Z11: 20.7
B12: 3.78 | C12: 44 | D12: 2.33 | E12: 84 | F12: 29 | G12: 0.71 | H12: 0.54 | I12: 1.21 | J12: 9.09 | K12: 79.6 | L12: 145 | M12: 37 | N12: 193 | O12: 0.9 | P12: 21.8 | Q12: 103 | R12: 3.72 | S12: 75 | T12: 1.23 | U12: 132 | V12: 3.06 | W12: 3.98 | X12: 120.4 | Y12: 121.7 | Z12: 21
B13: 3.81 | C13: 44 | D13: 2.31 | E13: 84 | F13: 29 | G13: 0.7 | H13: 0.61 | I13: 1.18 | J13: 8.83 | K13: 79.9 | L13: 145 | M13: 35.7 | N13: 190 | O13: 0.9 | P13: 22.8 | Q13: 103 | R13: 3.69 | S13: 75 | T13: 1.23 | U13: 132 | V13: 3.1 | W13: 3.98 | X13: 120.3 | Y13: 121.1 | Z13: 20.8
B14: 3.77 | C14: 42 | D14: 2.33 | E14: 87 | F14: 30 | G14: 0.72 | H14: 0.58 | I14: 1.21 | J14: 8.81 | K14: 79.6 | L14: 144 | M14: 36.2 | N14: 184 | O14: 0.9 | P14: 21.6 | Q14: 103 | R14: 3.66 | S14: 74 | T14: 1.23 | U14: 133 | V14: 3.06 | W14: 3.94 | X14: 120 | Y14: 121.9 | Z14: 20.7
B15: 3.76 | C15: 44 | D15: 2.33 | E15: 85 | F15: 29 | G15: 0.7 | H15: 0.59 | I15: 1.2 | J15: 8.87 | K15: 79.8 | L15: 145 | M15: 37.1 | N15: 187 | O15: 0.9 | P15: 22.4 | Q15: 101 | R15: 3.66 | S15: 74 | T15: 1.22 | U15: 129 | V15: 3.1 | W15: 4 | X15: 120.1 | Y15: 121.9 | Z15: 20.9
B16: 3.79 | C16: 41 | D16: 2.33 | E16: 84 | F16: 29 | G16: 0.71 | H16: 0.57 | I16: 1.22 | J16: 8.97 | K16: 79.6 | L16: 145 | M16: 36.5 | N16: 188 | O16: 0.9 | P16: 22 | Q16: 102 | R16: 3.7 | S16: 75 | T16: 1.22 | U16: 133 | V16: 3.1 | W16: 3.97 | X16: 120 | Y16: 121 | Z16: 20.9
B17: 3.78 | C17: 43 | D17: 2.32 | E17: 82 | F17: 29 | G17: 0.71 | H17: 0.58 | I17: 1.21 | J17: 9.14 | K17: 79.7 | L17: 146 | M17: 36.1 | N17: 184 | O17: 0.9 | P17: 22.4 | Q17: 102 | R17: 3.71 | S17: 75 | T17: 1.23 | U17: 131 | V17: 3.13 | W17: 4.02 | X17: 120.1 | Y17: 121.5 | Z17: 20.6
B18: 3.78 | C18: 44 | D18: 2.3 | E18: 86 | F18: 30 | G18: 0.69 | H18: 0.57 | I18: 1.2 | J18: 9.12 | K18: 79.6 | L18: 147 | M18: 36.6 | N18: 193 | O18: 0.9 | P18: 23.1 | Q18: 103 | R18: 3.67 | S18: 75 | T18: 1.29 | U18: 133 | V18: 3.06 | W18: 3.96 | X18: 120.5 | Y18: 121.4 | Z18: 20.6
B19: 3.78 | C19: 45 | D19: 2.32 | E19: 86 | F19: 29 | G19: 0.72 | H19: 0.55 | I19: 1.19 | J19: 9.04 | K19: 79.8 | L19: 146 | M19: 35.9 | N19: 190 | O19: 0.9 | P19: 21.9 | Q19: 102 | R19: 3.67 | S19: 73.6 | T19: 1.23 | U19: 131 | V19: 3.09 | W19: 3.95 | X19: 120.4 | Y19: 121 | Z19: 20.8
B20: 3.84 | C20: 45 | D20: 2.33 | E20: 85 | F20: 29 | G20: 0.71 | H20: 0.54 | I20: 1.19 | J20: 8.86 | K20: 79.8 | L20: 142 | M20: 36.4 | N20: 184 | O20: 0.9 | P20: 22.3 | Q20: 103 | R20: 3.69 | S20: 72.9 | T20: 1.23 | U20: 131 | V20: 3.07 | W20: 3.94 | X20: 120.2 | Y20: 120.3 | Z20: 20.8
B21: 3.81 | C21: 43 | D21: 2.34 | E21: 86 | F21: 29 | G21: 0.71 | H21: 0.58 | I21: 1.21 | J21: 8.89 | K21: 79.5 | L21: 145 | M21: 36.1 | N21: 187 | O21: 0.9 | P21: 22.6 | Q21: 103 | R21: 3.69 | S21: 72.8 | T21: 1.21 | U21: 133 | V21: 3.1 | W21: 3.95 | X21: 120.6 | Y21: 122.1 | Z21: 20.6
B22: 3.81 | C22: 43 | D22: 2.3 | E22: 84 | F22: 29 | G22: 0.71 | H22: 0.61 | I22: 1.21 | J22: 8.92 | K22: 79.6 | L22: 147 | M22: 36.6 | N22: 187 | O22: 0.9 | P22: 22.3 | Q22: 101 | R22: 3.67 | S22: 74 | T22: 1.23 | U22: 134 | V22: 3.11 | W22: 3.97 | X22: 120.4 | Y22: 120.3 | Z22: 20.9
B23: 3.8 | C23: 44 | D23: 2.31 | E23: 83 | F23: 29 | G23: 0.7 | H23: 0.59 | I23: 1.21 | J23: 9.16 | K23: 79.5 | L23: 144 | M23: 37.1 | N23: 188 | O23: 0.9 | P23: 22.2 | Q23: 103 | R23: 3.69 | S23: 73.8 | T23: 1.22 | U23: 133 | V23: 3.07 | W23: 4.01 | X23: 120.4 | Y23: 121.6 | Z23: 20.8
B24: 3.77 | C24: 46 | D24: 2.34 | E24: 84 | F24: 29 | G24: 0.68 | H24: 0.6 | I24: 1.21 | J24: 9.52 | K24: 79.8 | L24: 143 | M24: 36 | N24: 186 | O24: 0.9 | P24: 22.6 | Q24: 103 | R24: 3.69 | S24: 73.6 | T24: 1.21 | U24: 132 | V24: 3.1 | W24: 4.02 | X24: 120.6 | Y24: 121.9 | Z24: 20.6
B25: 3.82 | C25: 42 | D25: 2.32 | E25: 86 | F25: 30 | G25: 0.68 | H25: 0.59 | I25: 1.19 | J25: 8.92 | K25: 79.7 | L25: 144 | M25: 36.3 | N25: 185 | O25: 0.9 | P25: 22.6 | Q25: 103 | R25: 3.67 | S25: 73.7 | T25: 1.24 | U25: 131 | V25: 3.09 | W25: 3.98 | X25: 119.8 | Y25: 121.4 | Z25: 20.9
B26: 3.81 | C26: 44 | D26: 2.31 | E26: 85 | F26: 29 | G26: 0.69 | H26: 0.62 | I26: 1.19 | J26: 8.76 | K26: 79.3 | L26: 145 | M26: 35.9 | N26: 177 | O26: 0.9 | P26: 22.5 | Q26: 102 | R26: 3.66 | S26: 73.3 | T26: 1.22 | U26: 130 | V26: 3.12 | W26: 3.99 | X26: 120.3 | Y26: 121.5 | Z26: 20.8
B27: 3.78 | C27: 42 | D27: 2.35 | E27: 86 | F27: 29 | G27: 0.68 | H27: 0.59 | I27: 1.23 | J27: 8.82 | K27: 80.1 | L27: 143 | M27: 36.3 | N27: 186 | O27: 0.9 | P27: 23 | Q27: 103 | R27: 3.7 | S27: 73.5 | T27: 1.22 | U27: 130 | V27: 3.08 | W27: 4 | X27: 120.4 | Y27: 120.9 | Z27: 20.4
A28: Mean | B28: =AVERAGE(B8:B27) -> 3.7965 | C28: =AVERAGE(C8:C27) -> 43.4 | D28: =AVERAGE(D8:D27) -> 2.323 | E28: =AVERAGE(E8:E27) -> 84.45 | F28: =AVERAGE(F8:F27) -> 29.15 | G28: =AVERAGE(G8:G27) -> 0.705 | H28: =AVERAGE(H8:H27) -> 0.5785 | I28: =AVERAGE(I8:I27) -> 1.2055 | J28: =AVERAGE(J8:J27) -> 8.9805 | K28: =AVERAGE(K8:K27) -> 79.665 | L28: =AVERAGE(L8:L27) -> 144.85 | M28: =AVERAGE(M8:M27) -> 36.255 | N28: =AVERAGE(N8:N27) -> 187.1 | O28: =AVERAGE(O8:O27) -> 0.9 | P28: =AVERAGE(P8:P27) -> 22.345 | Q28: =AVERAGE(Q8:Q27) -> 102.25 | R28: =AVERAGE(R8:R27) -> 3.6885 | S28: =AVERAGE(S8:S27) -> 74.11 | T28: =AVERAGE(T8:T27) -> 1.232 | U28: =AVERAGE(U8:U27) -> 132 | V28: =AVERAGE(V8:V27) -> 3.0975 | W28: =AVERAGE(W8:W27) -> 3.983 | X28: =AVERAGE(X8:X27) -> 120.23 | Y28: =AVERAGE(Y8:Y27) -> 121.145 | Z28: =AVERAGE(Z8:Z27) -> 20.79
A29: SD | B29: =STDEV(B8:B27) -> 0.02084403234 | C29: =STDEV(C8:C27) -> 1.535543792 | D29: =STDEV(D8:D27) -> 0.01454575359 | E29: =STDEV(E8:E27) -> 1.431782106 | F29: =STDEV(F8:F27) -> 0.3663475485 | G29: =STDEV(G8:G27) -> 0.01468977446 | H29: =STDEV(H8:H27) -> 0.02777257261 | I29: =STDEV(I8:I27) -> 0.0135627198 | J29: =STDEV(J8:J27) -> 0.1740077131 | K29: =STDEV(K8:K27) -> 0.2277463964 | L29: =STDEV(L8:L27) -> 1.308876577 | M29: =STDEV(M8:M27) -> 0.459376007 | N29: =STDEV(N8:N27) -> 3.891962027 | O29: =STDEV(O8:O27) -> 0 | P29: =STDEV(P8:P27) -> 0.3940010687 | Q29: =STDEV(Q8:Q27) -> 0.8506963092 | R29: =STDEV(R8:R27) -> 0.02739093204 | S29: =STDEV(S8:S27) -> 0.7468530469 | T29: =STDEV(T8:T27) -> 0.02462348045 | U29: =STDEV(U8:U27) -> 1.521771821 | V29: =STDEV(V8:V27) -> 0.03126710058 | W29: =STDEV(W8:W27) -> 0.02867237805 | X29: =STDEV(X8:X27) -> 0.2451637476 | Y29: =STDEV(Y8:Y27) -> 0.6565259445 | Z29: =STDEV(Z8:Z27) -> 0.1713721712
A30: CV | B30: =B29/B28 -> 0.00549032855 | C30: =C29/C28 -> 0.03538119336 | D30: =D29/D28 -> 0.006261624445 | E30: =E29/E28 -> 0.01695419901 | F30: =F29/F28 -> 0.0125676689 | G30: =G29/G28 -> 0.02083655952 | H30: =H29/H28 -> 0.04800790426 | I30: =I29/I28 -> 0.01125070079 | J30: =J29/J28 -> 0.01937617205 | K30: =K29/K28 -> 0.002858801184 | L30: =L29/L28 -> 0.009036082688 | M30: =M29/M28 -> 0.01267069389 | N30: =N29/N28 -> 0.02080150736 | O30: =O29/O28 -> 0 | P30: =P29/P28 -> 0.01763262782 | Q30: =Q29/Q28 -> 0.008319768305 | R30: =R29/R28 -> 0.007426035526 | S30: =S29/S28 -> 0.01007762848 | T30: =T29/T28 -> 0.01998659127 | U30: =U29/U28 -> 0.0115285744 | V30: =V29/V28 -> 0.01009430204 | W30: =W29/W28 -> 0.007198688941 | X30: =X29/X28 -> 0.002039122911 | Y30: =Y29/Y28 -> 0.005419340002 | Z30: =Z29/Z28 -> 0.008243009676
A31: n | B31: =COUNT(B8:B27) -> 20 | C31: =COUNT(C8:C27) -> 20 | D31: =COUNT(D8:D27) -> 20 | E31: =COUNT(E8:E27) -> 20 | F31: =COUNT(F8:F27) -> 20 | G31: =COUNT(G8:G27) -> 20 | H31: =COUNT(H8:H27) -> 20 | I31: =COUNT(I8:I27) -> 20 | J31: =COUNT(J8:J27) -> 20 | K31: =COUNT(K8:K27) -> 20 | L31: =COUNT(L8:L27) -> 20 | M31: =COUNT(M8:M27) -> 20 | N31: =COUNT(N8:N27) -> 20 | O31: =COUNT(O8:O27) -> 20 | P31: =COUNT(P8:P27) -> 20 | Q31: =COUNT(Q8:Q27) -> 20 | R31: =COUNT(R8:R27) -> 20 | S31: =COUNT(S8:S27) -> 20 | T31: =COUNT(T8:T27) -> 20 | U31: =COUNT(U8:U27) -> 20 | V31: =COUNT(V8:V27) -> 20 | W31: =COUNT(W8:W27) -> 20 | X31: =COUNT(X8:X27) -> 20 | Y31: =COUNT(Y8:Y27) -> 20 | Z31: =COUNT(Z8:Z27) -> 20

Sheet 20 RUNS PV-2
A1: NOTICE: This document is an example only. It must be revised to reflect your lab’s specific processes and/or specific protocol requirements.
A2: Approved and current. Effective starting 10-Aug-2023. Last reviewed on 10-Aug-2023. RDP 510 (version 1.0). Precision (Chemistry)_Example. Page 2 of 4
E3: Vitros 250 | G3: Serial Number: 123456
E4: Date: 3 August 2023
E5: Within Run Precision--Preciabnormal
B7: URIC | C7: ALT | D7: ALB | E7: AMYL | F7: AST | G7: BU | H7: BC | I7: TBIL | J7: CA | K7: Cl | L7: CHOL | M7: DHDL | N7: CK | O7: CREA | P7: ECO2 | Q7: ALKP | R7: PHOS | S7: GLU | T7: LAC | U7: LIPA | V7: K | W7: TP | X7: NA | Y7: TRIG | Z7: BUN
B8: 10.3 | C8: 183 | D8: 4.36 | E8: 319 | F8: 150 | G8: 8.4 | H8: 5.49 | I8: 12.76 | J8: 11.44 | K8: 112.9 | L8: 233 | M8: 50.7 | N8: 801 | O8: 5.55 | P8: 15.1 | Q8: 488 | R8: 6.73 | S8: 275.1 | T8: 3.48 | U8: 618 | V8: 5.26 | W8: 7.16 | X8: 145.7 | Y8: 250 | Z8: 54.5
B9: 10.38 | C9: 186 | D9: 4.35 | E9: 314 | F9: 149 | G9: 8.3 | H9: 5.44 | I9: 12.63 | J9: 11.46 | K9: 112.9 | L9: 229 | M9: 50.2 | N9: 806 | O9: 5.5 | P9: 15.2 | Q9: 490 | R9: 6.67 | S9: 275.1 | T9: 3.5 | U9: 618 | V9: 5.24 | W9: 7.09 | X9: 145.8 | Y9: 249 | Z9: 54
B10: 10.36 | C10: 183 | D10: 4.38 | E10: 316 | F10: 150 | G10: 8.41 | H10: 5.4 | I10: 12.49 | J10: 11.37 | K10: 112 | L10: 229 | M10: 49.3 | N10: 790 | O10: 5.42 | P10: 14.7 | Q10: 494 | R10: 6.73 | S10: 274.5 | T10: 3.52 | U10: 617 | V10: 5.27 | W10: 7.11 | X10: 145.7 | Y10: 249 | Z10: 53.8
B11: 10.33 | C11: 188 | D11: 4.42 | E11: 315 | F11: 150 | G11: 8.46 | H11: 5.43 | I11: 12.75 | J11: 11.61 | K11: 112.3 | L11: 227 | M11: 51.5 | N11: 796 | O11: 5.53 | P11: 14.8 | Q11: 482 | R11: 6.7 | S11: 272.9 | T11: 3.5 | U11: 617 | V11: 5.23 | W11: 7.06 | X11: 145.3 | Y11: 248 | Z11: 53.6
B12: 10.28 | C12: 184 | D12: 4.46 | E12: 322 | F12: 152 | G12: 8.49 | H12: 5.45 | I12: 12.86 | J12: 11.43 | K12: 112.5 | L12: 226 | M12: 50.1 | N12: 791 | O12: 5.57 | P12: 15.1 | Q12: 495 | R12: 6.8 | S12: 273.1 | T12: 3.49 | U12: 611 | V12: 5.27 | W12: 7.04 | X12: 145 | Y12: 250 | Z12: 53.8
B13: 10.24 | C13: 186 | D13: 4.45 | E13: 318 | F13: 150 | G13: 8.44 | H13: 5.49 | I13: 12.73 | J13: 11.37 | K13: 111.9 | L13: 226 | M13: 50.3 | N13: 796 | O13: 5.55 | P13: 14.9 | Q13: 489 | R13: 6.71 | S13: 273.2 | T13: 3.49 | U13: 609 | V13: 5.21 | W13: 7.12 | X13: 145.6 | Y13: 250 | Z13: 54.3
B14: 10.35 | C14: 183 | D14: 4.36 | E14: 321 | F14: 150 | G14: 8.36 | H14: 5.47 | I14: 12.72 | J14: 11.31 | K14: 112.6 | L14: 226 | M14: 49.5 | N14: 791 | O14: 5.51 | P14: 15.1 | Q14: 487 | R14: 6.74 | S14: 277.4 | T14: 3.49 | U14: 624 | V14: 5.26 | W14: 7.09 | X14: 145.6 | Y14: 253 | Z14: 54
B15: 10.5 | C15: 185 | D15: 4.48 | E15: 317 | F15: 150 | G15: 8.39 | H15: 5.47 | I15: 12.73 | J15: 11.32 | K15: 112.8 | L15: 231 | M15: 49.4 | N15: 785 | O15: 5.51 | P15: 15.1 | Q15: 473 | R15: 6.75 | S15: 274.1 | T15: 3.46 | U15: 619 | V15: 5.24 | W15: 7.15 | X15: 145.4 | Y15: 251 | Z15: 53.5
B16: 10.41 | C16: 185 | D16: 4.43 | E16: 322 | F16: 149 | G16: 8.52 | H16: 5.37 | I16: 12.75 | J16: 11.39 | K16: 112.7 | L16: 223 | M16: 49.9 | N16: 790 | O16: 5.54 | P16: 15.3 | Q16: 489 | R16: 6.72 | S16: 274.5 | T16: 3.51 | U16: 616 | V16: 5.26 | W16: 7.15 | X16: 145.8 | Y16: 248 | Z16: 55.3
B17: 10.4 | C17: 187 | D17: 4.4 | E17: 320 | F17: 149 | G17: 8.43 | H17: 5.45 | I17: 12.84 | J17: 11.8 | K17: 112.3 | L17: 227 | M17: 49.2 | N17: 778 | O17: 5.54 | P17: 15 | Q17: 491 | R17: 6.75 | S17: 273 | T17: 3.52 | U17: 615 | V17: 5.25 | W17: 7.16 | X17: 145.6 | Y17: 249 | Z17: 55.2
B18: 10.38 | C18: 184 | D18: 4.44 | E18: 314 | F18: 151 | G18: 8.43 | H18: 5.4 | I18: 12.7 | J18: 11.51 | K18: 112.7 | L18: 230 | M18: 49.4 | N18: 807 | O18: 5.5 | P18: 14.5 | Q18: 480 | R18: 6.66 | S18: 274.3 | T18: 3.49 | U18: 607 | V18: 5.26 | W18: 7.09 | X18: 145.7 | Y18: 250 | Z18: 54.9
B19: 10.36 | C19: 187 | D19: 4.43 | E19: 319 | F19: 151 | G19: 8.35 | H19: 5.37 | I19: 12.76 | J19: 11.43 | K19: 112.1 | L19: 232 | M19: 49.1 | N19: 798 | O19: 5.49 | P19: 15.2 | Q19: 485 | R19: 6.76 | S19: 274.2 | T19: 3.48 | U19: 616 | V19: 5.23 | W19: 7.05 | X19: 145.5 | Y19: 250 | Z19: 54.5
B20: 10.39 | C20: 183 | D20: 4.41 | E20: 327 | F20: 150 | G20: 8.47 | H20: 5.53 | I20: 12.83 | J20: 11.39 | K20: 112.4 | L20: 229 | M20: 50.5 | N20: 799 | O20: 5.55 | P20: 15.2 | Q20: 486 | R20: 6.73 | S20: 275.6 | T20: 3.49 | U20: 616 | V20: 5.25 | W20: 7.1 | X20: 145.6 | Y20: 251 | Z20: 54.1
B21: 10.29 | C21: 185 | D21: 4.45 | E21: 317 | F21: 150 | G21: 8.43 | H21: 5.46 | I21: 12.77 | J21: 11.38 | K21: 112.1 | L21: 230 | M21: 49.9 | N21: 790 | O21: 5.4 | P21: 14.9 | Q21: 486 | R21: 6.75 | S21: 276.7 | T21: 3.47 | U21: 619 | V21: 5.26 | W21: 7.12 | X21: 145.6 | Y21: 252 | Z21: 54
B22: 10.39 | C22: 185 | D22: 4.44 | E22: 312 | F22: 150 | G22: 8.42 | H22: 5.39 | I22: 12.77 | J22: 11.37 | K22: 112.1 | L22: 229 | M22: 50.4 | N22: 796 | O22: 5.54 | P22: 15.3 | Q22: 490 | R22: 6.73 | S22: 273.3 | T22: 3.5 | U22: 608 | V22: 5.25 | W22: 7.12 | X22: 146 | Y22: 248 | Z22: 54.1
B23: 10.35 | C23: 186 | D23: 4.46 | E23: 314 | F23: 150 | G23: 8.18 | H23: 5.6 | I23: 12.87 | J23: 11.68 | K23: 112.7 | L23: 231 | M23: 50.4 | N23: 783 | O23: 5.6 | P23: 14 | Q23: 489 | R23: 6.75 | S23: 272 | T23: 3.65 | U23: 618 | V23: 5.26 | W23: 7.14 | X23: 145.5 | Y23: 249 | Z23: 53.8
B24: 10.38 | C24: 186 | D24: 4.44 | E24: 313 | F24: 149 | G24: 8.12 | H24: 5.56 | I24: 12.84 | J24: 11.5 | K24: 112 | L24: 228 | M24: 48.5 | N24: 778 | O24: 5.53 | P24: 14.9 | Q24: 481 | R24: 6.68 | S24: 274 | T24: 3.47 | U24: 621 | V24: 5.25 | W24: 7.06 | X24: 145.8 | Y24: 249 | Z24: 55.3
B25: 10.38 | C25: 184 | D25: 4.4 | E25: 309 | F25: 151 | G25: 8.13 | H25: 5.64 | I25: 12.8 | J25: 11.32 | K25: 112.7 | L25: 230 | M25: 49.3 | N25: 796 | O25: 5.57 | P25: 15.7 | Q25: 484 | R25: 6.72 | S25: 273.1 | T25: 3.49 | U25: 610 | V25: 5.28 | W25: 7.14 | X25: 145 | Y25: 251 | Z25: 54.9
B26: 10.46 | C26: 184 | D26: 4.41 | E26: 315 | F26: 150 | G26: 8.09 | H26: 5.56 | I26: 12.76 | J26: 11.41 | K26: 112.6 | L26: 231 | M26: 49.8 | N26: 779 | O26: 5.58 | P26: 15.3 | Q26: 476 | R26: 6.76 | S26: 280 | T26: 3.49 | U26: 619 | V26: 5.26 | W26: 7.04 | X26: 145.5 | Y26: 251 | Z26: 54.7
B27: 10.48 | C27: 183 | D27: 4.5 | E27: 314 | F27: 151 | G27: 8.17 | H27: 5.61 | I27: 12.63 | J27: 11.4 | K27: 112.8 | L27: 232 | M27: 50.1 | N27: 787 | O27: 5.55 | P27: 14.3 | Q27: 489 | R27: 6.8 | S27: 278.2 | T27: 3.47 | U27: 620 | V27: 5.25 | W27: 7.2 | X27: 145.1 | Y27: 252 | Z27: 54.7
A28: Mean | B28: =AVERAGE(B8:B27) -> 10.3705 | C28: =AVERAGE(C8:C27) -> 184.85 | D28: =AVERAGE(D8:D27) -> 4.4235 | E28: =AVERAGE(E8:E27) -> 316.9 | F28: =AVERAGE(F8:F27) -> 150.1 | G28: =AVERAGE(G8:G27) -> 8.3495 | H28: =AVERAGE(H8:H27) -> 5.479 | I28: =AVERAGE(I8:I27) -> 12.7495 | J28: =AVERAGE(J8:J27) -> 11.4445 | K28: =AVERAGE(K8:K27) -> 112.455 | L28: =AVERAGE(L8:L27) -> 228.95 | M28: =AVERAGE(M8:M27) -> 49.875 | N28: =AVERAGE(N8:N27) -> 791.85 | O28: =AVERAGE(O8:O27) -> 5.5265 | P28: =AVERAGE(P8:P27) -> 14.98 | Q28: =AVERAGE(Q8:Q27) -> 486.2 | R28: =AVERAGE(R8:R27) -> 6.732 | S28: =AVERAGE(S8:S27) -> 274.715 | T28: =AVERAGE(T8:T27) -> 3.498 | U28: =AVERAGE(U8:U27) -> 615.9 | V28: =AVERAGE(V8:V27) -> 5.252 | W28: =AVERAGE(W8:W27) -> 7.1095 | X28: =AVERAGE(X8:X27) -> 145.54 | Y28: =AVERAGE(Y8:Y27) -> 250 | Z28: =AVERAGE(Z8:Z27) -> 54.35
A29: SD | B29: =STDEV(B8:B27) -> 0.0647647565 | C29: =STDEV(C8:C27) -> 1.531253357 | D29: =STDEV(D8:D27) -> 0.04029823034 | E29: =STDEV(E8:E27) -> 4.191470035 | F29: =STDEV(F8:F27) -> 0.7880689257 | G29: =STDEV(G8:G27) -> 0.1352765199 | H29: =STDEV(H8:H27) -> 0.080779101 | I29: =STDEV(I8:I27) -> 0.08982292522 | J29: =STDEV(J8:J27) -> 0.124877835 | K29: =STDEV(K8:K27) -> 0.3300318964 | L29: =STDEV(L8:L27) -> 2.523051619 | M29: =STDEV(M8:M27) -> 0.682776838 | N29: =STDEV(N8:N27) -> 8.524114401 | O29: =STDEV(O8:O27) -> 0.04891184336 | P29: =STDEV(P8:P27) -> 0.3847076812 | Q29: =STDEV(Q8:Q27) -> 5.587580213 | R29: =STDEV(R8:R27) -> 0.03679244774 | S29: =STDEV(S8:S27) -> 2.01109423 | T29: =STDEV(T8:T27) -> 0.03914883879 | U29: =STDEV(U8:U27) -> 4.598626797 | V29: =STDEV(V8:V27) -> 0.01609184167 | W29: =STDEV(W8:W27) -> 0.04477722635 | X29: =STDEV(X8:X27) -> 0.2683281573 | Y29: =STDEV(Y8:Y27) -> 1.414213562 | Z29: =STDEV(Z8:Z27) -> 0.5670793131
A30: CV | B30: =B29/B28 -> 0.006245094884 | C30: =C29/C28 -> 0.008283761734 | D30: =D29/D28 -> 0.009110032856 | E30: =E29/E28 -> 0.01322647534 | F30: =F29/F28 -> 0.005250292643 | G30: =G29/G28 -> 0.01620175099 | H30: =H29/H28 -> 0.01474340226 | I30: =I29/I28 -> 0.007045211594 | J30: =J29/J28 -> 0.01091160252 | K30: =K29/K28 -> 0.002934790773 | L30: =L29/L28 -> 0.0110200988 | M30: =M29/M28 -> 0.01368976116 | N30: =N29/N28 -> 0.0107648095 | O30: =O29/O28 -> 0.008850419499 | P30: =P29/P28 -> 0.02568142064 | Q30: =Q29/Q28 -> 0.01149234926 | R30: =R29/R28 -> 0.005465307151 | S30: =S29/S28 -> 0.007320656788 | T30: =T29/T28 -> 0.01119177781 | U30: =U29/U28 -> 0.007466515339 | V30: =V29/V28 -> 0.003063945482 | W30: =W29/W28 -> 0.006298224398 | X30: =X29/X28 -> 0.001843672924 | Y30: =Y29/Y28 -> 0.005656854249 | Z30: =Z29/Z28 -> 0.01043384201
A31: n | B31: =COUNT(B8:B27) -> 20 | C31: =COUNT(C8:C27) -> 20 | D31: =COUNT(D8:D27) -> 20 | E31: =COUNT(E8:E27) -> 20 | F31: =COUNT(F8:F27) -> 20 | G31: =COUNT(G8:G27) -> 20 | H31: =COUNT(H8:H27) -> 20 | I31: =COUNT(I8:I27) -> 20 | J31: =COUNT(J8:J27) -> 20 | K31: =COUNT(K8:K27) -> 20 | L31: =COUNT(L8:L27) -> 20 | M31: =COUNT(M8:M27) -> 20 | N31: =COUNT(N8:N27) -> 20 | O31: =COUNT(O8:O27) -> 20 | P31: =COUNT(P8:P27) -> 20 | Q31: =COUNT(Q8:Q27) -> 20 | R31: =COUNT(R8:R27) -> 20 | S31: =COUNT(S8:S27) -> 20 | T31: =COUNT(T8:T27) -> 20 | U31: =COUNT(U8:U27) -> 20 | V31: =COUNT(V8:V27) -> 20 | W31: =COUNT(W8:W27) -> 20 | X31: =COUNT(X8:X27) -> 20 | Y31: =COUNT(Y8:Y27) -> 20 | Z31: =COUNT(Z8:Z27) -> 20

Sheet 4 RUNS PV-1
A1: NOTICE: This document is an example only. It must be revised to reflect your lab’s specific processes and/or specific protocol requirements.
A2: Approved and current. Effective starting 10-Aug-2023. Last reviewed on 10-Aug-2023. RDP 510 (version 1.0). Precision (Chemistry)_Example. Page 3 of 4
E3: Vitros 250 | G3: Serial Number: 123456
E4: Date: 3-7 August 2023
E5: Between Day Precision--Precinormal
B7: URIC | C7: ALT | D7: ALB | E7: AMYL | F7: AST | G7: BU | H7: BC | I7: TBIL | J7: CA | K7: Cl | L7: CHOL | M7: DHDL | N7: CK | O7: CREA | P7: ECO2 | Q7: ALKP | R7: PHOS | S7: GLU | T7: LAC | U7: LIPA | V7: K | W7: TP | X7: NA | Y7: TRIG | Z7: BUN
A8: 4 RUNS-A | B8: 3.82 | C8: 45 | D8: 2.38 | E8: 83 | F8: 29 | G8: 0.69 | H8: 0.59 | I8: 1.22 | J8: 8.94 | K8: 81.7 | L8: 154 | M8: 35 | N8: 197 | O8: 0.89 | P8: 21.5 | Q8: 107 | R8: 3.71 | S8: 74.8 | T8: 1.3 | U8: 130 | V8: 3.07 | W8: 3.99 | X8: 117.6 | Y8: 122.1 | Z8: 20.8
A9: 2023-08-03 | B9: 3.8 | C9: 45 | D9: 2.39 | E9: 81 | F9: 29 | G9: 0.69 | H9: 0.58 | I9: 1.15 | J9: 8.95 | K9: 81.7 | L9: 150 | M9: 35.4 | N9: 187 | O9: 0.88 | P9: 21.8 | Q9: 107 | R9: 3.73 | S9: 74 | T9: 1.27 | U9: 133 | V9: 2.94 | W9: 3.92 | X9: 117.4 | Y9: 120.5 | Z9: 20.6
B10: 3.8 | C10: 45 | D10: 2.38 | E10: 87 | F10: 30 | G10: 0.7 | H10: 0.53 | I10: 1.16 | J10: 8.94 | K10: 81.3 | L10: 151 | M10: 35.2 | N10: 184 | O10: 0.89 | P10: 22.1 | Q10: 106 | R10: 3.7 | S10: 74 | T10: 1.25 | U10: 132 | V10: 3.01 | W10: 4 | X10: 117.5 | Y10: 121.8 | Z10: 20.5
B11: 3.81 | C11: 46 | D11: 2.38 | E11: 87 | F11: 29 | G11: 0.71 | H11: 0.51 | I11: 1.16 | J11: 8.87 | K11: 81.6 | L11: 150 | M11: 36.2 | N11: 187 | O11: 0.89 | P11: 22.9 | Q11: 105 | R11: 3.67 | S11: 73.5 | T11: 1.25 | U11: 135 | V11: 3 | W11: 3.96 | X11: 117.3 | Y11: 121.9 | Z11: 20.6
A12: 4 RUNS-B | B12: 3.9 | C12: 44 | D12: 2.42 | E12: 82 | F12: 29 | G12: 0.69 | H12: 0.56 | I12: 1.18 | J12: 8.98 | K12: 81 | L12: 150 | M12: 34.7 | N12: 187 | O12: 0.89 | P12: 21.7 | Q12: 101 | R12: 3.71 | S12: 75.5 | T12: 1.21 | U12: 125 | V12: 3.11 | W12: 3.95 | X12: 119.3 | Y12: 119.2 | Z12: 20.9
A13: 2023-08-04 | B13: 3.87 | C13: 41 | D13: 2.41 | E13: 86 | F13: 28 | G13: 0.7 | H13: 0.56 | I13: 1.16 | J13: 8.98 | K13: 81.2 | L13: 149 | M13: 35.4 | N13: 185 | O13: 0.89 | P13: 22.8 | Q13: 101 | R13: 3.65 | S13: 75.4 | T13: 1.21 | U13: 126 | V13: 3.07 | W13: 3.97 | X13: 119.7 | Y13: 118.2 | Z13: 20.8
B14: 3.84 | C14: 44 | D14: 2.38 | E14: 86 | F14: 29 | G14: 0.72 | H14: 0.55 | I14: 1.16 | J14: 9.01 | K14: 81.5 | L14: 150 | M14: 35.1 | N14: 186 | O14: 0.9 | P14: 21.7 | Q14: 99 | R14: 3.63 | S14: 74.3 | T14: 1.19 | U14: 123 | V14: 3.13 | W14: 3.99 | X14: 119.2 | Y14: 117.5 | Z14: 20.8
B15: 3.82 | C15: 43 | D15: 2.37 | E15: 85 | F15: 29 | G15: 0.7 | H15: 0.56 | I15: 1.17 | J15: 8.93 | K15: 81.2 | L15: 150 | M15: 35.1 | N15: 190 | O15: 0.88 | P15: 21.3 | Q15: 101 | R15: 3.64 | S15: 74.3 | T15: 1.19 | U15: 127 | V15: 3.07 | W15: 4.03 | X15: 118.9 | Y15: 118.9 | Z15: 20.8
A16: 4 RUNS-C | B16: 3.89 | C16: 45 | D16: 2.33 | E16: 85 | F16: 29 | G16: 0.69 | H16: 0.57 | I16: 1.19 | J16: 9.27 | K16: 81.5 | L16: 152 | M16: 34.9 | N16: 189 | O16: 0.89 | P16: 21.8 | Q16: 103 | R16: 3.65 | S16: 75.5 | T16: 1.3 | U16: 130 | V16: 3.12 | W16: 4 | X16: 119.7 | Y16: 120.5 | Z16: 21.2
A17: 2023-08-05 | B17: 3.89 | C17: 43 | D17: 2.34 | E17: 87 | F17: 29 | G17: 0.69 | H17: 0.58 | I17: 1.19 | J17: 9.21 | K17: 82 | L17: 151 | M17: 34.8 | N17: 184 | O17: 0.9 | P17: 23.1 | Q17: 102 | R17: 3.65 | S17: 75.9 | T17: 1.3 | U17: 133 | V17: 3.08 | W17: 3.94 | X17: 120.4 | Y17: 118.3 | Z17: 21.3
B18: 3.89 | C18: 43 | D18: 2.33 | E18: 86 | F18: 29 | G18: 0.68 | H18: 0.58 | I18: 1.17 | J18: 9.14 | K18: 81.8 | L18: 150 | M18: 35.2 | N18: 187 | O18: 0.9 | P18: 23.9 | Q18: 103 | R18: 3.63 | S18: 75.5 | T18: 1.29 | U18: 132 | V18: 3.08 | W18: 3.94 | X18: 119.8 | Y18: 118.6 | Z18: 21.1
B19: 3.9 | C19: 42 | D19: 2.35 | E19: 86 | F19: 30 | G19: 0.68 | H19: 0.56 | I19: 1.18 | J19: 9.18 | K19: 81.9 | L19: 153 | M19: 34.5 | N19: 189 | O19: 0.94 | P19: 22.5 | Q19: 100 | R19: 3.67 | S19: 74.1 | T19: 1.29 | U19: 130 | V19: 3.06 | W19: 3.98 | X19: 119.8 | Y19: 119.6 | Z19: 21.1
A20: 4 RUNS-D | B20: 3.9 | C20: 45 | D20: 2.4 | E20: 81 | F20: 30 | G20: 0.72 | H20: 0.58 | I20: 1.17 | J20: 8.8 | K20: 81.3 | L20: 148 | M20: 33.8 | N20: 189 | O20: 0.9 | P20: 22.2 | Q20: 103 | R20: 3.68 | S20: 74.9 | T20: 1.33 | U20: 136 | V20: 3.02 | W20: 4.03 | X20: 119.9 | Y20: 120.5 | Z20: 20.8
A21: 2023-08-06 | B21: 3.93 | C21: 42 | D21: 2.37 | E21: 83 | F21: 30 | G21: 0.73 | H21: 0.57 | I21: 1.15 | J21: 8.79 | K21: 81.3 | L21: 148 | M21: 33.8 | N21: 186 | O21: 0.89 | P21: 22.8 | Q21: 102 | R21: 3.74 | S21: 75 | T21: 1.32 | U21: 133 | V21: 3.04 | W21: 3.98 | X21: 119.7 | Y21: 119.3 | Z21: 20.9
B22: 3.91 | C22: 43 | D22: 2.36 | E22: 83 | F22: 30 | G22: 0.71 | H22: 0.62 | I22: 1.16 | J22: 8.83 | K22: 80.7 | L22: 148 | M22: 35.4 | N22: 188 | O22: 0.89 | P22: 22.6 | Q22: 100 | R22: 3.69 | S22: 74.1 | T22: 1.31 | U22: 136 | V22: 3.04 | W22: 3.98 | X22: 119.3 | Y22: 118.5 | Z22: 20.8
B23: 3.91 | C23: 44 | D23: 2.37 | E23: 83 | F23: 30 | G23: 0.71 | H23: 0.61 | I23: 1.17 | J23: 8.74 | K23: 81.3 | L23: 147 | M23: 35.1 | N23: 192 | O23: 0.9 | P23: 22.9 | Q23: 101 | R23: 3.71 | S23: 74.4 | T23: 1.3 | U23: 137 | V23: 3.06 | W23: 4.01 | X23: 119.8 | Y23: 119.5 | Z23: 20.5
A24: 4 RUNS-E | B24: 3.94 | C24: 44 | D24: 2.37 | F24: 29 | G24: 0.69 | H24: 0.61 | I24: 1.16 | J24: 8.99 | K24: 81.2 | L24: 149 | M24: 35.2 | N24: 195 | O24: 0.91 | P24: 23.2 | Q24: 103 | R24: 3.65 | S24: 75.9 | T24: 1.33 | U24: 136 | V24: 3.01 | W24: 4.06 | X24: 120.4 | Y24: 123.2 | Z24: 21.3
A25: 2023-08-07 | B25: 3.91 | C25: 41 | D25: 2.38 | F25: 29 | G25: 0.7 | H25: 0.6 | I25: 1.17 | J25: 8.96 | K25: 81.4 | L25: 147 | M25: 35.4 | N25: 194 | O25: 0.9 | P25: 21.9 | Q25: 103 | R25: 3.67 | S25: 75.7 | T25: 1.33 | U25: 139 | V25: 3.01 | W25: 4 | X25: 120.3 | Y25: 121.8 | Z25: 21.1
B26: 3.89 | C26: 43 | D26: 2.36 | F26: 29 | G26: 0.69 | H26: 0.59 | I26: 1.14 | J26: 9.02 | K26: 81.5 | L26: 147 | M26: 35.6 | N26: 194 | O26: 0.89 | P26: 22.9 | Q26: 104 | R26: 3.66 | S26: 75.3 | T26: 1.32 | U26: 139 | V26: 2.98 | W26: 4 | X26: 120.4 | Y26: 121.1 | Z26: 21
B27: 3.91 | C27: 41 | D27: 2.38 | F27: 29 | G27: 0.68 | H27: 0.6 | I27: 1.15 | J27: 9.03 | K27: 82.1 | L27: 145 | M27: 35.3 | N27: 193 | O27: 0.94 | P27: 22.6 | Q27: 105 | R27: 3.64 | S27: 76 | T27: 1.32 | U27: 137 | V27: 3.05 | W27: 4.04 | X27: 120.5 | Y27: 121.1 | Z27: 20.9
A28: Mean | B28: =AVERAGE(B8:B27) -> 3.8765 | C28: =AVERAGE(C8:C27) -> 43.45 | D28: =AVERAGE(D8:D27) -> 2.3725 | E28: =AVERAGE(E8:E27) -> 84.4375 | F28: =AVERAGE(F8:F27) -> 29.25 | G28: =AVERAGE(G8:G27) -> 0.6985 | H28: =AVERAGE(H8:H27) -> 0.5755 | I28: =AVERAGE(I8:I27) -> 1.168 | J28: =AVERAGE(J8:J27) -> 8.978 | K28: =AVERAGE(K8:K27) -> 81.46 | L28: =AVERAGE(L8:L27) -> 149.45 | M28: =AVERAGE(M8:M27) -> 35.055 | N28: =AVERAGE(N8:N27) -> 189.15 | O28: =AVERAGE(O8:O27) -> 0.898 | P28: =AVERAGE(P8:P27) -> 22.41 | Q28: =AVERAGE(Q8:Q27) -> 102.8 | R28: =AVERAGE(R8:R27) -> 3.674 | S28: =AVERAGE(S8:S27) -> 74.905 | T28: =AVERAGE(T8:T27) -> 1.2805 | U28: =AVERAGE(U8:U27) -> 132.45 | V28: =AVERAGE(V8:V27) -> 3.0475 | W28: =AVERAGE(W8:W27) -> 3.9885 | X28: =AVERAGE(X8:X27) -> 119.345 | Y28: =AVERAGE(Y8:Y27) -> 120.105 | Z28: =AVERAGE(Z8:Z27) -> 20.89
A29: SD | B29: =STDEV(B8:B27) -> 0.04451788523 | C29: =STDEV(C8:C27) -> 1.503504678 | D29: =STDEV(D8:D27) -> 0.02359192547 | E29: =STDEV(E8:E27) -> 2.128183889 | F29: =STDEV(F8:F27) -> 0.5501196042 | G29: =STDEV(G8:G27) -> 0.01424411236 | H29: =STDEV(H8:H27) -> 0.02723677854 | I29: =STDEV(I8:I27) -> 0.01794729125 | J29: =STDEV(J8:J27) -> 0.1405478004 | K29: =STDEV(K8:K27) -> 0.343970623 | L29: =STDEV(L8:L27) -> 2.187885304 | M29: =STDEV(M8:M27) -> 0.5567528035 | N29: =STDEV(N8:N27) -> 3.81513606 | O29: =STDEV(O8:O27) -> 0.01609184167 | P29: =STDEV(P8:P27) -> 0.674263731 | Q29: =STDEV(Q8:Q27) -> 2.307881234 | R29: =STDEV(R8:R27) -> 0.03330876287 | S29: =STDEV(S8:S27) -> 0.7674119185 | T29: =STDEV(T8:T27) -> 0.04751454071 | U29: =STDEV(U8:U27) -> 4.628004003 | V29: =STDEV(V8:V27) -> 0.04777964773 | W29: =STDEV(W8:W27) -> 0.03587624929 | X29: =STDEV(X8:X27) -> 1.064486533 | Y29: =STDEV(Y8:Y27) -> 1.573288544 | Z29: =STDEV(Z8:Z27) -> 0.2403944128
A30: CV | B30: =B29/B28 -> 0.01148404108 | C30: =C29/C28 -> 0.0346030996 | D30: =D29/D28 -> 0.009943909576 | E30: =E29/E28 -> 0.02520425035 | F30: =F29/F28 -> 0.01880750784 | G30: =G29/G28 -> 0.02039243 | H30: =H29/H28 -> 0.04732715646 | I30: =I29/I28 -> 0.01536583155 | J30: =J29/J28 -> 0.01565468929 | K30: =K29/K28 -> 0.004222570869 | L30: =L29/L28 -> 0.01463958049 | M30: =M29/M28 -> 0.01588226511 | N30: =N29/N28 -> 0.02016989723 | O30: =O29/O28 -> 0.01791964552 | P30: =P29/P28 -> 0.03008762744 | Q30: =Q29/Q28 -> 0.02245020655 | R30: =R29/R28 -> 0.009066075905 | S30: =S29/S28 -> 0.01024513609 | T30: =T29/T28 -> 0.03710624031 | U30: =U29/U28 -> 0.03494151758 | V30: =V29/V28 -> 0.01567830934 | W30: =W29/W28 -> 0.008994922725 | X30: =X29/X28 -> 0.008919406201 | Y30: =Y29/Y28 -> 0.013099276 | Z30: =Z29/Z28 -> 0.01150763106
A31: n | B31: =COUNT(B8:B27) -> 20 | C31: =COUNT(C8:C27) -> 20 | D31: =COUNT(D8:D27) -> 20 | E31: =COUNT(E8:E27) -> 16 | F31: =COUNT(F8:F27) -> 20 | G31: =COUNT(G8:G27) -> 20 | H31: =COUNT(H8:H27) -> 20 | I31: =COUNT(I8:I27) -> 20 | J31: =COUNT(J8:J27) -> 20 | K31: =COUNT(K8:K27) -> 20 | L31: =COUNT(L8:L27) -> 20 | M31: =COUNT(M8:M27) -> 20 | N31: =COUNT(N8:N27) -> 20 | O31: =COUNT(O8:O27) -> 20 | P31: =COUNT(P8:P27) -> 20 | Q31: =COUNT(Q8:Q27) -> 20 | R31: =COUNT(R8:R27) -> 20 | S31: =COUNT(S8:S27) -> 20 | T31: =COUNT(T8:T27) -> 20 | U31: =COUNT(U8:U27) -> 20 | V31: =COUNT(V8:V27) -> 20 | W31: =COUNT(W8:W27) -> 20 | X31: =COUNT(X8:X27) -> 20 | Y31: =COUNT(Y8:Y27) -> 20 | Z31: =COUNT(Z8:Z27) -> 20

Sheet 4 RUNS PV-2
A1: NOTICE: This document is an example only. It must be revised to reflect your lab’s specific processes and/or specific protocol requirements.
A2: Approved and current. Effective starting 10-Aug-2023. Last reviewed on 10-Aug-2023. RDP 510 (version 1.0). Precision (Chemistry)_Example. Page 4 of 4
F3: Vitros 250 | H3: Serial Number: 123456
F4: Date: 3-7 August 2023
F5: Between Day Precision--Preciabnormal
B7: URIC | C7: ALT | D7: ALB | E7: AMYL | F7: AST | G7: BU | H7: BC | I7: TBIL | J7: CA | K7: Cl | L7: CHOL | M7: DHDL | N7: CK | O7: CREA | P7: ECO2 | Q7: ALKP | R7: PHOS | S7: GLU | T7: LAC | U7: LIPA | V7: K | W7: TP | X7: NA | Y7: TRIG | Z7: BUN
A8: 4 RUNS-A | B8: 10.28 | C8: 184 | D8: 4.51 | E8: 319 | F8: 154 | G8: 8.54 | H8: 5.57 | I8: 12.88 | J8: 11.49 | K8: 114.4 | L8: 237 | M8: 49.9 | N8: 802 | O8: 5.46 | P8: 15 | Q8: 504 | R8: 6.62 | S8: 273.3 | T8: 3.6 | U8: 618 | V8: 5.46 | W8: 6.97 | X8: 148 | Y8: 250.3 | Z8: 54.5
A9: 2023-08-03 | B9: 10.31 | C9: 185 | D9: 4.54 | E9: 321 | F9: 153 | G9: 8.37 | H9: 5.43 | I9: 12.72 | J9: 11.55 | K9: 114.9 | L9: 234 | M9: 49.9 | N9: 797 | O9: 5.47 | P9: 15 | Q9: 495 | R9: 6.71 | S9: 273 | T9: 3.49 | U9: 621 | V9: 5.35 | W9: 2.95 | X9: 148.6 | Y9: 248.7 | Z9: 54
B10: 10.37 | C10: 183 | D10: 4.55 | E10: 316 | F10: 154 | G10: 8.45 | H10: 5.44 | I10: 12.75 | J10: 11.55 | K10: 114.8 | L10: 233 | M10: 50.6 | N10: 792 | O10: 5.46 | P10: 15 | Q10: 500 | R10: 6.67 | S10: 272 | T10: 3.52 | U10: 628 | V10: 5.43 | W10: 6.99 | X10: 148 | Y10: 251 | Z10: 53.8
B11: 10.37 | C11: 187 | D11: 4.51 | E11: 326 | F11: 154 | G11: 8.4 | H11: 5.4 | I11: 12.61 | J11: 11.88 | K11: 114.4 | L11: 241 | M11: 49.6 | N11: 781 | O11: 5.5 | P11: 14 | Q11: 495 | R11: 6.68 | S11: 270.1 | T11: 3.48 | U11: 627 | V11: 5.36 | W11: 6.91 | X11: 147.6 | Y11: 250.6 | Z11: 53.6
A12: 4 RUNS-B | B12: 10.31 | C12: 186 | D12: 4.49 | E12: 312 | F12: 149 | G12: 8.49 | H12: 5.17 | I12: 12.72 | J12: 11.44 | K12: 112.7 | L12: 236 | M12: 48.3 | N12: 792 | O12: 5.52 | P12: 14 | Q12: 467 | R12: 6.79 | S12: 282.8 | T12: 3.61 | U12: 613 | V12: 5.43 | W12: 7.07 | X12: 148.4 | Y12: 246.3 | Z12: 53.8
A13: 2023-08-04 | B13: 10.31 | C13: 183 | D13: 4.53 | E13: 310 | F13: 150 | G13: 8.52 | H13: 5.18 | I13: 12.74 | J13: 11.42 | K13: 112.6 | L13: 234 | M13: 48.6 | N13: 770 | O13: 5.53 | P13: 14.3 | Q13: 462 | R13: 6.79 | S13: 280 | T13: 3.57 | U13: 627 | V13: 5.38 | W13: 7.08 | X13: 148.1 | Y13: 245.5 | Z13: 54.3
B14: 10.35 | C14: 184 | D14: 4.55 | E14: 309 | F14: 151 | G14: 8.56 | H14: 5.14 | I14: 12.75 | J14: 11.39 | K14: 112.8 | L14: 238 | M14: 49 | N14: 795 | O14: 5.53 | P14: 14.2 | Q14: 454 | R14: 6.74 | S14: 276 | T14: 3.57 | U14: 631 | V14: 5.44 | W14: 7.06 | X14: 148 | Y14: 244.2 | Z14: 54
B15: 10.26 | C15: 184 | D15: 4.51 | E15: 310 | F15: 151 | G15: 8.62 | H15: 5.15 | I15: 12.63 | J15: 11.35 | K15: 112 | L15: 234 | M15: 49 | N15: 783 | O15: 5.43 | P15: 14.8 | Q15: 465 | R15: 6.77 | S15: 276.2 | T15: 3.56 | U15: 621 | V15: 5.43 | W15: 7.03 | X15: 148.2 | Y15: 244.9 | Z15: 53.5
A16: 4 RUNS-C | B16: 10.42 | C16: 183 | D16: 4.52 | E16: 321 | F16: 150 | G16: 8.71 | H16: 5.03 | I16: 13.03 | J16: 11.32 | K16: 112.7 | L16: 236 | M16: 49.2 | N16: 797 | O16: 5.45 | P16: 14.8 | Q16: 475 | R16: 6.72 | S16: 272.9 | T16: 3.53 | U16: 618 | V16: 5.43 | W16: 7.13 | X16: 148.5 | Y16: 253.4 | Z16: 55.3
A17: 2023-08-05 | B17: 10.45 | C17: 182 | D17: 4.55 | E17: 317 | F17: 151 | G17: 8.67 | H17: 5.04 | I17: 12.89 | J17: 11.34 | K17: 112.5 | L17: 234 | M17: 48.5 | N17: 772 | O17: 5.42 | P17: 14.6 | Q17: 479 | R17: 6.79 | S17: 274.4 | T17: 3.49 | U17: 622 | V17: 5.41 | W17: 7.08 | X17: 148.1 | Y17: 250.5 | Z17: 55.2
B18: 10.4 | C18: 183 | D18: 4.51 | E18: 313 | F18: 152 | G18: 8.78 | H18: 5.11 | I18: 13 | J18: 11.48 | K18: 112.2 | L18: 231 | M18: 48.7 | N18: 791 | O18: 5.41 | P18: 15 | Q18: 467 | R18: 6.71 | S18: 272 | T18: 3.49 | U18: 618 | V18: 5.45 | W18: 7.02 | X18: 148.3 | Y18: 251.8 | Z18: 54.9
B19: 10.47 | C19: 182 | D19: 4.54 | E19: 312 | F19: 152 | G19: 8.79 | H19: 5.11 | I19: 12.95 | J19: 11.47 | K19: 112.9 | L19: 233 | M19: 48.6 | N19: 805 | O19: 5.49 | P19: 15 | Q19: 471 | R19: 6.75 | S19: 271.8 | T19: 3.47 | U19: 621 | V19: 5.34 | W19: 7.13 | X19: 148 | Y19: 251.9 | Z19: 54.5
A20: 4 RUNS-D | B20: 10.32 | C20: 183 | D20: 4.52 | E20: 306 | F20: 152 | G20: 8.54 | H20: 5.23 | I20: 12.68 | J20: 11.45 | K20: 114 | L20: 228 | M20: 48 | N20: 817 | O20: 5.46 | P20: 14.1 | Q20: 467 | R20: 6.8 | S20: 273.6 | T20: 3.7 | U20: 658 | V20: 5.2 | W20: 7.05 | X20: 147.5 | Y20: 249.4 | Z20: 54.1
A21: 2023-08-06 | B21: 10.53 | C21: 181 | D21: 4.53 | E21: 309 | F21: 152 | G21: 8.61 | H21: 5.24 | I21: 12.65 | J21: 11.42 | K21: 112.8 | L21: 234 | M21: 48.2 | N21: 824 | O21: 5.51 | P21: 14.5 | Q21: 467 | R21: 6.8 | S21: 273.6 | T21: 3.71 | U21: 649 | V21: 5.31 | W21: 7.04 | X21: 148.5 | Y21: 250.8 | Z21: 54
B22: 10.47 | C22: 182 | D22: 4.51 | E22: 310 | F22: 152 | G22: 8.51 | H22: 5.16 | I22: 12.73 | J22: 11.44 | K22: 112.9 | L22: 235 | M22: 50.2 | N22: 821 | O22: 5.46 | P22: 12.8 | Q22: 457 | R22: 6.77 | S22: 273.9 | T22: 3.7 | U22: 656 | V22: 5.22 | W22: 7.12 | X22: 149 | Y22: 250.9 | Z22: 54.1
B23: 10.44 | C23: 181 | D23: 4.53 | E23: 311 | F23: 152 | G23: 8.48 | H23: 5.19 | I23: 12.5 | J23: 11.38 | K23: 113.5 | L23: 235 | M23: 49.5 | N23: 825 | O23: 5.53 | P23: 13.9 | Q23: 465 | R23: 6.68 | S23: 273.9 | T23: 3.71 | U23: 652 | V23: 5.28 | W23: 7.11 | X23: 148.5 | Y23: 251.9 | Z23: 53.8
A24: 4 RUNS-E | B24: 10.54 | C24: 178 | D24: 4.56 | F24: 152 | G24: 7.87 | H24: 5.48 | I24: 12.68 | J24: 11.68 | K24: 113.8 | L24: 231 | M24: 49.6 | N24: 826 | O24: 5.53 | P24: 14.9 | Q24: 477 | R24: 6.72 | S24: 277.2 | T24: 3.7 | U24: 653 | V24: 5.21 | W24: 7.2 | X24: 148.6 | Y24: 254.5 | Z24: 55.3
A25: 2023-08-07 | B25: 10.49 | C25: 174 | D25: 4.56 | F25: 153 | G25: 7.84 | H25: 5.52 | I25: 12.72 | J25: 11.56 | K25: 114.8 | L25: 234 | M25: 49.8 | N25: 822 | O25: 5.45 | P25: 14.6 | Q25: 479 | R25: 6.74 | S25: 276 | T25: 3.74 | U25: 655 | V25: 5.29 | W25: 7.19 | X25: 148.5 | Y25: 252.1 | Z25: 54.9
B26: 10.46 | C26: 176 | D26: 4.5 | F26: 152 | G26: 7.88 | H26: 5.51 | I26: 12.74 | J26: 11.55 | K26: 113.5 | L26: 234 | M26: 49.6 | N26: 813 | O26: 5.43 | P26: 15 | Q26: 484 | R26: 6.74 | S26: 273.7 | T26: 3.74 | U26: 661 | V26: 5.21 | W26: 7.13 | X26: 148.8 | Y26: 252.1 | Z26: 54.7
B27: 10.5 | C27: 177 | D27: 4.56 | F27: 153 | G27: 7.94 | H27: 5.42 | I27: 12.71 | J27: 11.57 | K27: 113.6 | L27: 231 | M27: 50 | N27: 834 | O27: 5.58 | P27: 14.6 | Q27: 484 | R27: 6.73 | S27: 277 | T27: 3.74 | U27: 656 | V27: 5.32 | W27: 7.1 | X27: 148.7 | Y27: 254.5 | Z27: 54.7
A28: Mean | B28: =AVERAGE(B8:B27) -> 10.4025 | C28: =AVERAGE(C8:C27) -> 181.9 | D28: =AVERAGE(D8:D27) -> 4.529 | E28: =AVERAGE(E8:E27) -> 313.875 | F28: =AVERAGE(F8:F27) -> 151.95 | G28: =AVERAGE(G8:G27) -> 8.4285 | H28: =AVERAGE(H8:H27) -> 5.276 | I28: =AVERAGE(I8:I27) -> 12.754 | J28: =AVERAGE(J8:J27) -> 11.4865 | K28: =AVERAGE(K8:K27) -> 113.39 | L28: =AVERAGE(L8:L27) -> 234.15 | M28: =AVERAGE(M8:M27) -> 49.24 | N28: =AVERAGE(N8:N27) -> 802.95 | O28: =AVERAGE(O8:O27) -> 5.481 | P28: =AVERAGE(P8:P27) -> 14.505 | Q28: =AVERAGE(Q8:Q27) -> 475.7 | R28: =AVERAGE(R8:R27) -> 6.736 | S28: =AVERAGE(S8:S27) -> 274.67 | T28: =AVERAGE(T8:T27) -> 3.606 | U28: =AVERAGE(U8:U27) -> 635.25 | V28: =AVERAGE(V8:V27) -> 5.3475 | W28: =AVERAGE(W8:W27) -> 6.868 | X28: =AVERAGE(X8:X27) -> 148.295 | Y28: =AVERAGE(Y8:Y27) -> 250.265 | Z28: =AVERAGE(Z8:Z27) -> 54.35
A29: SD | B29: =STDEV(B8:B27) -> 0.08626001086 | C29: =STDEV(C8:C27) -> 3.322966335 | D29: =STDEV(D8:D27) -> 0.02149663376 | E29: =STDEV(E8:E27) -> 5.536244214 | F29: =STDEV(F8:F27) -> 1.35627198 | G29: =STDEV(G8:G27) -> 0.3015272528 | H29: =STDEV(H8:H27) -> 0.1746394783 | I29: =STDEV(I8:I27) -> 0.1334324193 | J29: =STDEV(J8:J27) -> 0.1297882891 | K29: =STDEV(K8:K27) -> 0.9118517885 | L29: =STDEV(L8:L27) -> 2.796143961 | M29: =STDEV(M8:M27) -> 0.735133357 | N29: =STDEV(N8:N27) -> 18.99716045 | O29: =STDEV(O8:O27) -> 0.04587167455 | P29: =STDEV(P8:P27) -> 0.5576973335 | Q29: =STDEV(Q8:Q27) -> 14.25371604 | R29: =STDEV(R8:R27) -> 0.04892529214 | S29: =STDEV(S8:S27) -> 2.972523295 | T29: =STDEV(T8:T27) -> 0.101224087 | U29: =STDEV(U8:U27) -> 17.16138566 | V29: =STDEV(V8:V27) -> 0.08884492699 | W29: =STDEV(W8:W27) -> 0.924893166 | X29: =STDEV(X8:X27) -> 0.3859029057 | Y29: =STDEV(Y8:Y27) -> 2.979981455 | Z29: =STDEV(Z8:Z27) -> 0.5670793131
A30: CV | B30: =B29/B28 -> 0.008292238487 | C30: =C29/C28 -> 0.0182680942 | D30: =D29/D28 -> 0.004746441546 | E30: =E29/E28 -> 0.01763837265 | F30: =F29/F28 -> 0.008925778086 | G30: =G29/G28 -> 0.03577472301 | H30: =H29/H28 -> 0.03310073508 | I30: =I29/I28 -> 0.01046200559 | J30: =J29/J28 -> 0.01129920247 | K30: =K29/K28 -> 0.00804173021 | L30: =L29/L28 -> 0.01194167825 | M30: =M29/M28 -> 0.01492959702 | N30: =N29/N28 -> 0.02365920724 | O30: =O29/O28 -> 0.008369216302 | P30: =P29/P28 -> 0.03844862692 | Q30: =Q29/Q28 -> 0.02996366627 | R30: =R29/R28 -> 0.007263255958 | S30: =S29/S28 -> 0.01082216221 | T30: =T29/T28 -> 0.02807101692 | U30: =U29/U28 -> 0.0270151683 | V30: =V29/V28 -> 0.0166142921 | W30: =W29/W28 -> 0.1346670306 | X30: =X29/X28 -> 0.002602265118 | Y30: =Y29/Y28 -> 0.01190730408 | Z30: =Z29/Z28 -> 0.01043384201
A31: n | B31: =COUNT(B8:B27) -> 20 | C31: =COUNT(C8:C27) -> 20 | D31: =COUNT(D8:D27) -> 20 | E31: =COUNT(E8:E27) -> 16 | F31: =COUNT(F8:F27) -> 20 | G31: =COUNT(G8:G27) -> 20 | H31: =COUNT(H8:H27) -> 20 | I31: =COUNT(I8:I27) -> 20 | J31: =COUNT(J8:J27) -> 20 | K31: =COUNT(K8:K27) -> 20 | L31: =COUNT(L8:L27) -> 20 | M31: =COUNT(M8:M27) -> 20 | N31: =COUNT(N8:N27) -> 20 | O31: =COUNT(O8:O27) -> 20 | P31: =COUNT(P8:P27) -> 20 | Q31: =COUNT(Q8:Q27) -> 20 | R31: =COUNT(R8:R27) -> 20 | S31: =COUNT(S8:S27) -> 20 | T31: =COUNT(T8:T27) -> 20 | U31: =COUNT(U8:U27) -> 20 | V31: =COUNT(V8:V27) -> 20 | W31: =COUNT(W8:W27) -> 20 | X31: =COUNT(X8:X27) -> 20 | Y31: =COUNT(Y8:Y27) -> 20 | Z31: =COUNT(Z8:Z27) -> 20
